bitfinex-derivatives/quotes_BTCF0:USTF0_20250902
["timestamp","ask_amount","ask_price","bid_price","bid_amount"]
[1756794666617,1.82194324,110500.0,110490.0,0.08332]
[1756794667021,1.82194324,110500.0,110490.0,0.14808689]
[1756794668112,1.82194324,110500.0,110490.0,0.11421689]
[1756794668313,1.82194324,110500.0,110490.0,0.14808689]
[1756794668520,1.82194324,110500.0,110490.0,0.08332]
[1756794669015,1.82194324,110500.0,110490.0,0.14808689]
[1756794669316,1.82194324,110500.0,110490.0,0.08332]
[1756794670506,0.99310324,110500.0,110490.0,0.08332]
[1756794670709,1.82190324,110500.0,110490.0,0.08332]
[1756794671808,0.99310324,110500.0,110490.0,0.08332]
[1756794672004,1.82190324,110500.0,110490.0,0.08332]
[1756794672211,0.99310324,110500.0,110490.0,0.08332]
[1756794672517,1.82190324,110500.0,110490.0,0.08332]
[1756794674322,0.99310324,110500.0,110490.0,0.08332]
[1756794674618,1.82186324,110500.0,110490.0,0.08332]
[1756794675620,0.75936676,110500.0,110490.0,0.08332]
[1756794675920,0.04945,110500.0,110490.0,0.56705648]
[1756794676419,0.04945,110500.0,110490.0,0.72232277]
[1756794676420,0.01884,110500.0,110490.0,0.72232277]
[1756794676624,0.48131699,110510.0,110500.0,0.01391]
[1756794676817,0.83131699,110510.0,110500.0,0.16014403]
[1756794677016,0.84029571,110510.0,110500.0,0.16014403]
[1756794677319,1.07403219,110510.0,110500.0,0.16014403]
[1756794680922,0.47949571,110510.0,110500.0,0.52094403]
[1756794681321,0.7131203,110510.0,110500.0,0.52094403]
[1756794681713,0.7131203,110510.0,110500.0,0.50703403]
[1756794682418,0.7131203,110510.0,110500.0,0.14623403]
[1756794684323,0.7131203,110510.0,110500.0,0.0814]
[1756794685620,0.7131203,110510.0,110500.0,0.09531]
[1756794689128,0.47949571,110510.0,110500.0,0.09531]
[1756794689429,0.7131203,110510.0,110500.0,0.09531]
[1756794689617,0.47949571,110510.0,110500.0,0.09531]
[1756794691728,0.47949571,110510.0,110500.0,0.0814]
[1756794692530,0.7131203,110510.0,110500.0,0.0814]
[1756794694934,0.7131203,110510.0,110500.0,0.14623403]
[1756794696027,0.7131203,110510.0,110500.0,0.11236403]
[1756794696833,0.7131203,110510.0,110500.0,0.06483403]
[1756794697032,1.0739203,110510.0,110500.0,0.06483403]
[1756794697221,0.04945,110500.0,110490.0,0.99728312]
[1756794697533,0.38945,110500.0,110490.0,0.99728312]
[1756794698441,0.38945,110500.0,110490.0,0.99828312]
[1756794698633,0.04945,110500.0,110490.0,1.23190771]
[1756794698936,0.04945,110500.0,110490.0,1.59270771]
[1756794699632,0.04945,110500.0,110490.0,1.52787368]
[1756794699829,0.12949571,110510.0,110500.0,0.06283]
[1756794700030,0.49051699,110510.0,110500.0,0.33183459]
[1756794700233,0.17051699,110510.0,110500.0,0.09821]
[1756794700533,0.17051699,110510.0,110500.0,0.33183459]
[1756794700730,0.12106699,110510.0,110500.0,0.33183459]
[1756794700935,0.12251699,110510.0,110500.0,0.69263459]
[1756794701234,0.002,110510.0,110500.0,1.03312569]
[1756794701429,0.002,110510.0,110500.0,1.11389772]
[1756794701634,0.0004822,110510.0,110500.0,1.14729539]
[1756794703036,0.70670459,110550.0,110510.0,0.09048]
[1756794703239,0.04945,110540.0,110530.0,0.74312351]
[1756794703534,0.37945,110540.0,110530.0,0.50949892]
[1756794704336,0.37945,110540.0,110530.0,0.46524679]
[1756794704538,0.38245,110540.0,110530.0,0.46524679]
[1756794704729,0.38245,110540.0,110530.0,0.69887138]
[1756794704924,0.38245,110540.0,110530.0,0.7635703]
[1756794705134,0.38345,110540.0,110530.0,0.7635703]
[1756794705330,0.38345,110540.0,110530.0,0.46524679]
[1756794705536,0.38345,110540.0,110530.0,0.69887138]
[1756794705737,0.61707459,110540.0,110530.0,0.52994571]
[1756794706025,0.38345,110540.0,110530.0,0.52994571]
[1756794707239,0.38345,110540.0,110530.0,0.46524679]
[1756794707738,0.38345,110540.0,110530.0,0.69887138]
[1756794707938,0.38345,110540.0,110530.0,0.46524679]
[1756794708138,0.38345,110540.0,110530.0,0.69887138]
[1756794709540,0.38345,110540.0,110530.0,0.46524679]
[1756794711739,0.61707459,110540.0,110530.0,0.46524679]
[1756794714145,0.38345,110540.0,110530.0,0.46524679]
[1756794716341,0.61707459,110540.0,110530.0,0.46524679]
[1756794716642,0.38345,110540.0,110530.0,0.46524679]
[1756794716842,0.61707459,110540.0,110530.0,0.46524679]
[1756794717444,0.61695345,110540.0,110530.0,0.69875024]
[1756794718646,0.38345,110540.0,110530.0,0.69875024]
[1756794719138,0.61695345,110540.0,110530.0,0.69875024]
[1756794719346,0.8504569,110540.0,110530.0,0.02044679]
[1756794719646,0.8504569,110540.0,110530.0,0.04459679]
[1756794720347,0.8504569,110540.0,110530.0,0.10444679]
[1756794725548,0.38345,110540.0,110530.0,0.69875024]
[1756794725752,0.61695345,110540.0,110530.0,0.69875024]
[1756794729158,0.61695345,110540.0,110530.0,0.46524679]
[1756794729356,0.61695345,110540.0,110530.0,0.69875024]
[1756794729658,0.61695345,110540.0,110530.0,0.46524679]
[1756794729956,0.8504569,110540.0,110530.0,0.69875024]
[1756794730344,0.8504569,110540.0,110530.0,0.76344916]
[1756794731555,0.38345,110540.0,110530.0,0.76344916]
[1756794731857,0.61695345,110540.0,110530.0,0.76344916]
[1756794732358,0.61695345,110540.0,110530.0,0.40264916]
[1756794732550,0.8504569,110540.0,110530.0,0.16914571]
[1756794732745,0.8504569,110540.0,110530.0,0.40264916]
[1756794733957,0.8504569,110540.0,110530.0,0.33795024]
[1756794734161,0.61695345,110540.0,110530.0,0.69875024]
[1756794734455,0.61695345,110540.0,110530.0,0.76344916]
[1756794735359,0.8504569,110540.0,110530.0,0.76344916]
[1756794735659,0.8504569,110540.0,110530.0,0.46524679]
[1756794737156,0.61695345,110540.0,110530.0,0.46524679]
[1756794738467,0.61695345,110540.0,110530.0,0.69875024]
[1756794739564,0.61695345,110540.0,110530.0,0.76344916]
[1756794741365,0.61695345,110540.0,110530.0,0.46524679]
[1756794741665,0.61695345,110540.0,110530.0,0.69875024]
[1756794742361,0.38345,110540.0,110530.0,0.69875024]
[1756794742556,0.61695345,110540.0,110530.0,0.69875024]
[1756794742966,0.61695345,110540.0,110530.0,0.54612044]
[1756794743156,0.61695345,110540.0,110530.0,0.77962389]
[1756794743357,0.61695345,110540.0,110530.0,0.69875024]
[1756794744365,0.61695345,110540.0,110530.0,0.77962389]
[1756794745566,0.61695345,110540.0,110530.0,0.69875024]
[1756794745863,0.61695345,110540.0,110530.0,0.77962389]
[1756794747164,0.8504569,110540.0,110530.0,0.54612044]
[1756794747367,0.86848754,110540.0,110530.0,0.08087365]
[1756794747666,0.86848754,110540.0,110530.0,0.04741]
[1756794747961,0.86848754,110540.0,110530.0,0.0836]
[1756794750562,1.69792754,110540.0,110530.0,0.0836]
[1756794750861,1.46442409,110540.0,110530.0,0.0836]
[1756794751067,1.69792754,110540.0,110530.0,0.16447365]
[1756794752372,1.23092064,110540.0,110530.0,0.16447365]
[1756794752572,1.23092064,110540.0,110530.0,0.7587771]
[1756794752573,1.23064064,110540.0,110530.0,0.7587771]
[1756794752771,0.35203064,110540.0,110530.0,1.9284036]
[1756794753070,0.334,110540.0,110530.0,1.82192279]
[1756794753272,0.334,110540.0,110530.0,1.91238929]
[1756794753476,0.004,110540.0,110530.0,2.0810334]
[1756794753767,0.004,110540.0,110530.0,2.16190705]
[1756794758477,0.004,110540.0,110530.0,1.9284036]
[1756794759576,0.004,110540.0,110530.0,1.0992436]
[1756794759874,0.004,110540.0,110530.0,1.9281636]
[1756794765880,0.004,110540.0,110530.0,1.8373371]
[1756794766081,0.004,110540.0,110530.0,1.9278037]
[1756794766576,0.004,110540.0,110530.0,2.16130715]
[1756794770882,0.003,110540.0,110530.0,2.16130715]
[1756794771481,0.003,110540.0,110530.0,1.24228055]
[1756794771677,0.24527345,110550.0,110530.0,1.8011071]
[1756794771877,0.61295345,110550.0,110540.0,0.67896345]
[1756794772083,0.61295345,110550.0,110540.0,1.50748345]
[1756794772274,0.61295345,110550.0,110540.0,0.67896345]
[1756794772578,0.61295345,110550.0,110540.0,1.50748345]
[1756794772783,0.61295345,110550.0,110540.0,1.7409869]
[1756794772986,0.61395345,110550.0,110540.0,1.7409869]
[1756794773390,0.38045,110550.0,110540.0,1.7409869]
[1756794774087,0.36868,110550.0,110540.0,1.7409869]
[1756794774287,0.60218345,110550.0,110540.0,1.7409869]
[1756794774588,0.60418345,110550.0,110540.0,1.7409869]
[1756794774888,0.37068,110550.0,110540.0,1.7409869]
[1756794775686,0.37068,110550.0,110540.0,1.82186055]
[1756794776281,0.37068,110550.0,110540.0,2.02670513]
[1756794776487,0.35184,110550.0,110540.0,2.02670513]
[1756794776687,0.333,110550.0,110540.0,2.02670513]
[1756794777991,0.333,110550.0,110540.0,2.11716353]
[1756794779487,0.333,110550.0,110540.0,1.88354817]
[1756794780290,0.333,110550.0,110540.0,1.88350817]
[1756794781184,0.333,110550.0,110540.0,1.05502817]
[1756794781385,0.333,110550.0,110540.0,1.79304977]
[1756794782093,0.333,110550.0,110540.0,1.88350817]
[1756794782781,0.043,110550.0,110540.0,1.88350817]
[1756794783391,0.043,110550.0,110540.0,1.80263452]
[1756794783596,0.003,110550.0,110540.0,1.80263452]
[1756794784493,0.003,110550.0,110540.0,2.05263452]
[1756794784704,0.003,110550.0,110540.0,2.13369957]
[1756794784992,0.003,110550.0,110540.0,2.05263452]
[1756794785796,0.003,110550.0,110540.0,2.13366942]
[1756794790096,0.003,110550.0,110540.0,1.30518942]
[1756794790296,0.003,110550.0,110540.0,2.13354942]
[1756794791296,0.003,110550.0,110540.0,2.28590606]
[1756794791502,0.003,110550.0,110540.0,2.3668733]
[1756794796403,0.003,110550.0,110540.0,1.5385133]
[1756794796802,0.003,110550.0,110540.0,1.90005022]
[1756794797102,0.003,110550.0,110540.0,2.13344176]
[1756794797698,0.003,110550.0,110540.0,2.3668333]
[1756794799411,0.003,110550.0,110540.0,1.5385133]
[1756794799608,0.003,110550.0,110540.0,2.13344176]
[1756794800209,0.003,110550.0,110540.0,2.05247452]
[1756794800709,0.003,110550.0,110540.0,2.28586606]
[1756794806016,0.003,110550.0,110540.0,2.36683523]
[1756794809014,0.003,110550.0,110540.0,2.72763523]
[1756794809514,0.003,110550.0,110540.0,2.72755523]
[1756794811822,0.003,110550.0,110540.0,1.89931523]
[1756794812114,0.003,110550.0,110540.0,2.40370529]
[1756794814417,0.003,110550.0,110540.0,2.32273612]
[1756794814609,0.003,110550.0,110540.0,2.41319452]
[1756794816920,0.003,110550.0,110540.0,2.52736422]
[1756794820320,0.003,110550.0,110540.0,2.52732422]
[1756794822620,0.003,110550.0,110540.0,2.41315452]
[1756794823520,0.003,110550.0,110540.0,2.52673132]
[1756794824322,0.003,110550.0,110540.0,2.41315452]
[1756794824821,0.003,110550.0,110540.0,2.08930458]
[1756794825021,0.003,110550.0,110540.0,2.32269612]
[1756794825415,0.003,110550.0,110540.0,2.43628951]
[1756794825615,0.003,110550.0,110540.0,2.52674781]
[1756794826825,0.003,110550.0,110540.0,2.63674781]
[1756794827409,0.003,110550.0,110540.0,2.63670781]
[1756794827815,0.003,110550.0,110540.0,2.52311442]
[1756794828122,0.003,110550.0,110540.0,2.43265612]
[1756794830224,0.003,110550.0,110540.0,2.52311382]
[1756794834330,0.003,110550.0,110540.0,2.43265612]
[1756794834817,0.003,110550.0,110540.0,2.54624951]
[1756794836423,0.26477,110550.0,110540.0,2.18616951]
[1756794838024,0.26477,110550.0,110540.0,1.95277797]
[1756794838229,0.26477,110550.0,110540.0,2.18616951]
[1756794839424,0.01477,110550.0,110540.0,2.41959043]
[1756794839928,0.01477,110550.0,110540.0,1.59151043]
[1756794840130,0.01477,110550.0,110540.0,2.41955043]
[1756794841629,0.01477,110550.0,110540.0,1.59151043]
[1756794841829,0.01477,110550.0,110540.0,2.41955043]
[1756794842628,0.01477,110550.0,110540.0,1.59151043]
[1756794842829,0.01477,110550.0,110540.0,2.41951043]
[1756794843030,0.01477,110550.0,110540.0,2.38707359]
[1756794844627,0.003,110550.0,110540.0,2.38707359]
[1756794847537,0.003,110550.0,110540.0,2.30587704]
[1756794848024,0.003,110550.0,110540.0,2.41947043]
[1756794849336,0.003,110550.0,110540.0,2.30587704]
[1756794849337,0.26477,110550.0,110540.0,2.30587704]
[1756794849734,0.26477,110550.0,110540.0,2.41947043]
[1756794850126,0.26477,110550.0,110540.0,1.59151043]
[1756794850127,0.59477,110550.0,110540.0,1.59151043]
[1756794850334,0.51817623,110550.0,110540.0,2.1860642]
[1756794850528,0.49817623,110550.0,110540.0,2.07247081]
[1756794850939,0.26477,110550.0,110540.0,2.30587704]
[1756794851136,0.49817623,110550.0,110540.0,2.07247081]
[1756794852936,0.26477,110550.0,110540.0,2.07247081]
[1756794853142,0.253,110550.0,110540.0,2.30587704]
[1756794854536,0.253,110550.0,110540.0,2.38694452]
[1756794856538,0.26477,110550.0,110540.0,2.38694452]
[1756794856742,0.26477,110550.0,110540.0,2.38686452]
[1756794856937,0.87817623,110550.0,110540.0,2.15345829]
[1756794857143,0.51817623,110550.0,110540.0,2.15345829]
[1756794858234,0.253,110550.0,110540.0,2.15345829]
[1756794858442,0.48640623,110550.0,110540.0,2.38686452]
[1756794858640,0.48640623,110550.0,110540.0,2.38690452]
[1756794859042,0.49817623,110550.0,110540.0,2.38690452]
[1756794859548,0.49817623,110550.0,110540.0,1.92009206]
[1756794860044,0.49817623,110550.0,110540.0,2.38690452]
[1756794860444,0.58817623,110550.0,110540.0,1.01110458]
[1756794860647,0.57817623,110550.0,110540.0,2.1859842]
[1756794860848,0.34477,110550.0,110540.0,2.26702798]
[1756794861049,0.57817623,110550.0,110540.0,2.15343459]
[1756794861248,0.82817623,110550.0,110540.0,1.01110458]
[1756794861442,1.09926246,110550.0,110540.0,1.19841325]
[1756794861642,0.86585623,110550.0,110540.0,1.19841325]
[1756794862143,0.86585623,110550.0,110540.0,0.28950458]
[1756794862345,0.86585623,110550.0,110540.0,0.35431177]
[1756794862952,1.22665623,110550.0,110540.0,0.35431177]
[1756794864251,1.22665623,110550.0,110540.0,0.29377177]
[1756794864445,1.22665623,110550.0,110540.0,0.31879177]
[1756794864646,1.22665623,110550.0,110540.0,0.35368177]
[1756794866251,1.22665623,110550.0,110540.0,0.25398458]
[1756794866950,1.46006246,110550.0,110540.0,0.25398458]
[1756794867152,1.22665623,110550.0,110540.0,0.25398458]
[1756794868243,1.22665623,110550.0,110540.0,0.28887458]
[1756794875763,1.22665623,110550.0,110540.0,0.33739388]
[1756794878462,2.05441623,110550.0,110540.0,0.33739388]
[1756794878658,2.05441623,110550.0,110540.0,0.57080011]
[1756794879360,2.05441623,110550.0,110540.0,0.33739388]
[1756794880264,2.05445623,110550.0,110540.0,0.33739388]
[1756794882071,1.22665623,110550.0,110540.0,0.33739388]
[1756794884170,0.89665623,110550.0,110540.0,0.33739388]
[1756794884367,0.89665623,110550.0,110540.0,1.36648704]
[1756794884368,0.003,110550.0,110540.0,1.36648704]
[1756794884567,0.003,110550.0,110540.0,1.43129423]
[1756794884873,0.003,110550.0,110540.0,1.43120694]
[1756794885069,0.003,110550.0,110540.0,1.36648704]
[1756794885874,0.003,110550.0,110540.0,1.38656266]
[1756794888281,0.003,110550.0,110540.0,1.46759133]
[1756794889091,0.003,110550.0,110540.0,1.38656266]
[1756794891194,0.003,110550.0,110540.0,0.9197502]
[1756794891387,0.003,110550.0,110540.0,1.38656266]
[1756794892490,0.003,110550.0,110540.0,1.13656266]
[1756794892694,0.003,110550.0,110540.0,1.38656266]
[1756794899284,0.003,110550.0,110540.0,1.13656266]
[1756794900295,0.003,110550.0,110540.0,1.21759133]
[1756794900491,0.003,110550.0,110540.0,2.04495133]
[1756794900693,0.003,110550.0,110540.0,2.29495133]
[1756794900894,0.003,110550.0,110540.0,2.38540983]
[1756794901095,0.003,110550.0,110540.0,2.29495133]
[1756794901396,0.003,110550.0,110540.0,2.38540983]
[1756794901595,0.003,110550.0,110540.0,2.15194637]
[1756794901895,0.003,110550.0,110540.0,2.26540483]
[1756794902080,0.003,110550.0,110540.0,2.0709177]
[1756794902586,0.003,110550.0,110540.0,1.46715109]
[1756794902787,0.003,110550.0,110540.0,2.29447109]
[1756794902988,0.003,110550.0,110540.0,2.20401259]
[1756794903293,0.01845183,110560.0,110550.0,0.09826]
[1756794903592,0.01845183,110560.0,110550.0,0.97811919]
[1756794903795,0.01845183,110560.0,110550.0,1.80543919]
[1756794904790,0.05613183,110560.0,110550.0,0.74477019]
[1756794904994,0.06790183,110560.0,110550.0,0.74477019]
[1756794905196,0.06790183,110560.0,110550.0,1.57205019]
[1756794905496,0.07090183,110560.0,110550.0,1.49118458]
[1756794906198,0.06990183,110560.0,110550.0,1.49118458]
[1756794906402,0.07390183,110560.0,110550.0,1.49118458]
[1756794907399,0.02445183,110560.0,110550.0,1.72453358]
[1756794907599,0.02445183,110560.0,110550.0,0.89725358]
[1756794907801,0.02445183,110560.0,110550.0,1.72445358]
[1756794908101,0.02445183,110560.0,110550.0,0.89725358]
[1756794908302,0.02445183,110560.0,110550.0,1.72445358]
[1756794908701,0.02445183,110560.0,110550.0,0.89725358]
[1756794908897,0.06213183,110560.0,110550.0,0.89725358]
[1756794909103,0.07390183,110560.0,110550.0,1.57193019]
[1756794909290,0.07390183,110560.0,110550.0,1.49106458]
[1756794909490,0.09390183,110560.0,110550.0,1.49106458]
[1756794909693,0.32725083,110560.0,110550.0,1.49106458]
[1756794910499,0.32725083,110560.0,110550.0,1.49110458]
[1756794910705,0.09390183,110560.0,110550.0,0.66394458]
[1756794910894,0.09390183,110560.0,110550.0,1.49106458]
[1756794911601,0.09390183,110560.0,110550.0,1.57193019]
[1756794911788,0.08213183,110560.0,110550.0,1.57193019]
[1756794911994,0.08213183,110560.0,110550.0,0.74481019]
[1756794912194,0.08213183,110560.0,110550.0,1.49106458]
[1756794912394,0.08213183,110560.0,110550.0,1.57193019]
[1756794912606,0.04445183,110560.0,110550.0,1.57193019]
[1756794913006,0.04445183,110560.0,110550.0,0.74481019]
[1756794913204,0.04445183,110560.0,110550.0,1.49102458]
[1756794913403,0.02445183,110560.0,110550.0,1.80523919]
[1756794915909,0.02445183,110560.0,110550.0,1.72437358]
[1756794916609,0.02245183,110560.0,110550.0,1.72437358]
[1756794916804,0.02345183,110560.0,110550.0,1.49102458]
[1756794917003,0.02345183,110560.0,110550.0,1.72437358]
[1756794917704,0.005,110560.0,110550.0,1.72437358]
[1756794918114,0.005,110560.0,110550.0,0.97815919]
[1756794918314,0.003,110560.0,110550.0,1.80511919]
[1756794919600,0.003,110560.0,110550.0,1.81400067]
[1756794921608,0.003,110560.0,110550.0,0.97815919]
[1756794922002,0.003,110560.0,110550.0,2.13808939]
[1756794922195,0.003,110560.0,110550.0,2.04763909]
[1756794922596,0.003,110560.0,110550.0,2.13808939]
[1756794923311,0.003,110560.0,110550.0,2.38808939]
[1756794927415,0.003,110560.0,110550.0,2.29763909]
[1756794933816,0.003,110560.0,110550.0,1.83094109]
[1756794934015,0.003,110560.0,110550.0,4.29928939]
[1756794934321,0.04945,110600.0,110590.0,0.08279]
[1756794934517,0.39827552,110600.0,110590.0,1.77313353]
[1756794934817,0.05827552,110600.0,110590.0,1.53978453]
[1756794935018,0.45096263,110600.0,110590.0,1.53978453]
[1756794935313,0.06748936,110610.0,110600.0,0.09732]
[1756794935519,0.37748936,110610.0,110600.0,0.30216458]
[1756794935825,0.44748936,110610.0,110600.0,1.13092458]
[1756794936112,0.662799,110610.0,110600.0,1.08063458]
[1756794936317,0.67945,110610.0,110600.0,0.20484458]
[1756794936506,0.68870503,110610.0,110600.0,0.28729458]
[1756794936712,0.92205403,110610.0,110600.0,0.30216458]
[1756794937019,0.69770503,110610.0,110600.0,0.30216458]
[1756794937325,0.93105403,110610.0,110600.0,0.35061191]
[1756794937507,0.69770503,110610.0,110600.0,0.33574191]
[1756794937711,0.93605403,110610.0,110600.0,0.33574191]
[1756794937912,0.93605403,110610.0,110600.0,0.29976191]
[1756794938112,1.06350503,110610.0,110600.0,0.27655191]
[1756794938315,1.29685403,110610.0,110600.0,0.33574191]
[1756794938618,0.93605403,110610.0,110600.0,0.33574191]
[1756794939118,0.93605403,110610.0,110600.0,0.29976191]
[1756794939722,1.00984105,110610.0,110600.0,0.29976191]
[1756794939918,1.00984105,110610.0,110600.0,0.33574191]
[1756794940118,1.00984105,110610.0,110600.0,0.35061191]
[1756794940513,1.00984105,110610.0,110600.0,0.33574191]
[1756794941921,1.00984105,110610.0,110600.0,0.35061191]
[1756794942320,0.77649205,110610.0,110600.0,0.35061191]
[1756794942524,0.93058602,110610.0,110600.0,0.35061191]
[1756794943225,0.95058602,110610.0,110600.0,0.35061191]
[1756794943425,0.96058602,110610.0,110600.0,0.35061191]
[1756794943618,0.96058602,110610.0,110600.0,0.33574191]
[1756794943820,0.40345,110610.0,110600.0,0.35061191]
[1756794944019,0.636799,110610.0,110600.0,0.35061191]
[1756794944223,0.636799,110610.0,110600.0,0.33574191]
[1756794944423,0.40345,110610.0,110600.0,0.33574191]
[1756794944626,0.40345,110610.0,110600.0,0.35061191]
[1756794944830,0.636799,110610.0,110600.0,0.35061191]
[1756794945622,0.40345,110610.0,110600.0,0.35061191]
[1756794946016,0.636799,110610.0,110600.0,0.35061191]
[1756794947126,0.40345,110610.0,110600.0,0.35061191]
[1756794947325,0.636799,110610.0,110600.0,0.35061191]
[1756794947725,0.40345,110610.0,110600.0,0.35061191]
[1756794948426,0.616799,110610.0,110600.0,0.35061191]
[1756794948628,0.06345,110610.0,110600.0,0.35061191]
[1756794949022,0.06345,110610.0,110600.0,0.58396091]
[1756794949626,0.06345,110610.0,110600.0,0.35061191]
[1756794949823,0.06345,110610.0,110600.0,1.19621191]
[1756794950029,0.656799,110610.0,110600.0,1.19621191]
[1756794950230,0.06345,110610.0,110600.0,1.19621191]
[1756794951028,0.296799,110610.0,110600.0,1.19621191]
[1756794951229,0.41345,110610.0,110600.0,1.19621191]
[1756794951426,0.646799,110610.0,110600.0,1.19621191]
[1756794951624,0.646799,110610.0,110600.0,1.19689191]
[1756794951825,0.616799,110610.0,110600.0,1.19689191]
[1756794952027,0.39345,110610.0,110600.0,1.19689191]
[1756794952333,0.296799,110610.0,110600.0,1.19689191]
[1756794952530,0.676799,110610.0,110600.0,1.19689191]
[1756794952717,0.676799,110610.0,110600.0,1.19753191]
[1756794952921,0.676799,110610.0,110600.0,0.35061191]
[1756794953127,0.676799,110610.0,110600.0,1.19741191]
[1756794953726,0.676799,110610.0,110600.0,1.19721191]
[1756794953923,0.676799,110610.0,110600.0,0.33574191]
[1756794954127,0.44345,110610.0,110600.0,0.35061191]
[1756794954423,0.676799,110610.0,110600.0,0.35061191]
[1756794955636,0.676799,110610.0,110600.0,0.25329191]
[1756794956037,1.270948,110610.0,110600.0,0.25329191]
[1756794956228,2.368708,110610.0,110600.0,0.25329191]
[1756794956428,2.368708,110610.0,110600.0,0.19307458]
[1756794956738,2.40602947,110610.0,110600.0,0.19307458]
[1756794958133,2.15618947,110610.0,110600.0,0.19307458]
[1756794959032,2.40618947,110610.0,110600.0,0.19307458]
[1756794959234,2.15618947,110610.0,110600.0,0.19307458]
[1756794961035,2.40618947,110610.0,110600.0,0.19307458]
[1756794961241,2.39441947,110610.0,110580.0,0.04844733]
[1756794961421,0.594149,110590.0,110580.0,0.00451]
[1756794961729,2.0143175,110590.0,110580.0,0.00451]
[1756794961933,2.39444815,110590.0,110580.0,0.00451]
[1756794962830,2.40044815,110590.0,110580.0,0.00451]
[1756794963433,2.63411152,110590.0,110580.0,0.00451]
[1756794963737,2.63511152,110590.0,110580.0,0.00451]
[1756794964637,2.63911152,110590.0,110580.0,0.00451]
[1756794967437,2.63911152,110590.0,110560.0,0.08424]
[1756794967737,0.82770758,110570.0,110560.0,0.08424]
[1756794968035,2.02474264,110570.0,110560.0,0.08424]
[1756794968939,0.70943506,110570.0,110560.0,0.08424]
[1756794969234,1.79084885,110570.0,110560.0,0.08424]
[1756794969439,1.79484885,110570.0,110560.0,0.08424]
[1756794970140,1.79496885,110570.0,110560.0,0.08424]
[1756794970641,0.94688885,110570.0,110560.0,0.08424]
[1756794970839,1.56359506,110570.0,110560.0,0.08424]
[1756794971042,1.79704885,110570.0,110560.0,0.08424]
[1756794972644,0.94888885,110570.0,110560.0,0.08424]
[1756794972844,1.79704885,110570.0,110560.0,0.08424]
[1756794973431,0.94888885,110570.0,110560.0,0.08424]
[1756794973740,0.35463506,110570.0,110560.0,0.80114758]
[1756794973944,0.35463506,110570.0,110560.0,1.16194758]
[1756794974148,0.35463506,110570.0,110560.0,1.21039491]
[1756794974735,0.35463506,110570.0,110560.0,1.25238928]
[1756794974936,0.10463506,110570.0,110560.0,2.16693923]
[1756794975136,0.10363506,110570.0,110560.0,2.16693923]
[1756794975539,0.10263506,110570.0,110560.0,2.16693923]
[1756794975750,0.10263506,110570.0,110560.0,2.10222928]
[1756794977549,0.02263506,110570.0,110560.0,2.10222928]
[1756794978349,0.02263506,110570.0,110560.0,2.18311672]
[1756794980450,0.02263506,110570.0,110560.0,2.41657051]
[1756794981455,0.004,110570.0,110560.0,2.33568307]
[1756794981757,0.004,110570.0,110560.0,2.41657051]
[1756794982047,0.004,110570.0,110560.0,1.71620914]
[1756794982352,0.004,110570.0,110560.0,2.41657051]
[1756794983248,0.004,110570.0,110560.0,1.71620914]
[1756794983451,0.004,110570.0,110560.0,2.18311672]
[1756794983754,0.004,110570.0,110560.0,2.41657051]
[1756794983957,0.2514518,110610.0,110600.0,0.09854]
[1756794984144,0.5714518,110610.0,110600.0,0.13330041]
[1756794984344,0.33799801,110610.0,110600.0,0.13330041]
[1756794984544,0.5714518,110610.0,110600.0,0.13330041]
[1756794985344,0.5764518,110610.0,110600.0,0.13330041]
[1756794985652,0.5834518,110610.0,110600.0,0.13330041]
[1756794986249,0.5834518,110610.0,110600.0,0.09771041]
[1756794987054,0.5834518,110610.0,110600.0,0.04929]
[1756794987252,0.34999801,110610.0,110600.0,0.04929]
[1756794987552,0.5834518,110610.0,110600.0,0.04929]
[1756794989154,0.9442518,110610.0,110600.0,0.04929]
[1756794989455,1.42770559,110610.0,110590.0,0.49410041]
[1756794989646,0.46690758,110600.0,110590.0,0.49410041]
[1756794989847,0.80690758,110600.0,110590.0,0.49410041]
[1756794991353,0.344,110600.0,110590.0,0.49410041]
[1756794991553,0.81090758,110600.0,110590.0,0.49410041]
[1756794991754,0.344,110600.0,110590.0,0.49410041]
[1756794991955,0.81090758,110600.0,110590.0,0.49410041]
[1756794992154,0.81090758,110600.0,110590.0,0.7275542]
[1756794992648,0.81690758,110600.0,110590.0,0.49410041]
[1756794993157,0.81690758,110600.0,110590.0,0.7275542]
[1756794993354,0.58345379,110600.0,110590.0,0.3667542]
[1756794994255,0.58345379,110600.0,110590.0,0.13330041]
[1756794994459,0.58345379,110600.0,110590.0,0.3667542]
[1756794995152,0.81690758,110600.0,110590.0,0.09771041]
[1756794995358,0.81690758,110600.0,110590.0,0.07271041]
[1756794995757,0.81690758,110600.0,110590.0,0.09654041]
[1756794997463,0.35,110600.0,110590.0,0.13110041]
[1756794997760,0.81690758,110600.0,110590.0,0.13110041]
[1756795000361,1.17770758,110600.0,110590.0,0.09654041]
[1756795000558,0.7108,110600.0,110590.0,0.09654041]
[1756795000763,1.17770758,110600.0,110590.0,0.09654041]
[1756795002767,0.7108,110600.0,110590.0,0.09654041]
[1756795002966,1.17770758,110600.0,110590.0,0.04842041]
[1756795003261,1.17770758,110600.0,110590.0,0.06456055]
[1756795003469,1.17770758,110600.0,110590.0,0.04856737]
[1756795004066,1.17770758,110600.0,110590.0,0.09692737]
[1756795004266,1.17770758,110600.0,110590.0,0.04836]
[1756795004470,1.17770758,110600.0,110590.0,0.09694414]
[1756795004658,2.03410758,110600.0,110590.0,0.13150414]
[1756795005362,1.72358409,110600.0,110590.0,0.13150414]
[1756795005567,2.05358409,110600.0,110590.0,0.09694414]
[1756795005756,2.03410758,110600.0,110590.0,0.09694414]
[1756795007976,2.03410758,110600.0,110590.0,0.04836]
[1756795008164,1.5672,110600.0,110590.0,0.04836]
[1756795008358,2.03410758,110600.0,110590.0,0.04836]
[1756795009370,2.03410758,110600.0,110580.0,0.50828055]
[1756795009570,0.23345379,110590.0,110580.0,0.50828055]
[1756795009772,0.59345379,110590.0,110580.0,0.50828055]
[1756795010471,0.59345379,110590.0,110580.0,0.44372]
[1756795010658,0.59745379,110590.0,110580.0,0.44372]
[1756795011871,0.95825379,110590.0,110580.0,0.04836]
[1756795012172,1.19170758,110590.0,110580.0,0.06456055]
[1756795012379,1.19170758,110590.0,110580.0,0.04859898]
[1756795012978,1.19470758,110590.0,110580.0,0.04859898]
[1756795013277,1.44470758,110590.0,110580.0,0.04859898]
[1756795015865,1.44470758,110590.0,110570.0,0.09695898]
[1756795016071,1.68282758,110580.0,110570.0,0.09695898]